[Event "MCR rapid mládeže 2023 U16"]
[Site "Harachov, Czech Republic"]
[Date "2023.09.09"]
[Round "4.12"]
[White "Vaclavkova, Klara"]
[Black "Buchtova, Viktorie"]
[Result "0-1"]
[TimeControl "20min+5s/move"]
[WhiteElo "1092"]
[BlackElo "1556"]

1. d4 {[%clk 00:20:08]} {[%emt 00:00:01]} Nf6 {[%clk 00:20:09]} {[%emt
00:00:01]} 2. c4 {[%clk 00:20:12]} {[%emt 00:00:01]} e6 {[%clk 00:20:13]} 3.
Nc3 {[%clk 00:20:16]} Bb4 {[%clk 00:20:16]} {[%emt 00:00:03]} 4. Nf3 {[%clk
00:20:19]} {[%emt 00:00:01]} Ne4 {[%clk 00:19:20]} {[%emt 00:01:01]} 5. Bd2
{[%clk 00:19:42]} {[%emt 00:00:43]} Bxc3 {[%clk 00:18:50]} {[%emt 00:00:35]} 6.
Bxc3 {[%clk 00:19:42]} {[%emt 00:00:04]} Nxc3 {[%clk 00:18:54]} {[%emt
00:00:02]} 7. bxc3 {[%clk 00:19:45]} {[%emt 00:00:02]} b6 {[%clk 00:18:54]}
{[%emt 00:00:05]} 8. g3 {[%clk 00:19:44]} {[%emt 00:00:05]} Ba6 {[%clk
00:14:15]} {[%emt 00:04:44]} 9. e3 {[%clk 00:17:30]} {[%emt 00:02:19]} Nc6
{[%clk 00:13:37]} {[%emt 00:00:43]} 10. Nd2 {[%clk 00:16:14]} {[%emt 00:01:20]}
O-O {[%clk 00:12:58]} {[%emt 00:00:44]} 11. Bg2 {[%clk 00:16:17]} {[%emt
00:00:02]} Rb8 {[%clk 00:12:56]} {[%emt 00:00:07]} 12. O-O {[%clk 00:16:19]}
{[%emt 00:00:03]} Na5 {[%clk 00:12:47]} {[%emt 00:00:13]} 13. Re1 {[%clk
00:14:31]} {[%emt 00:01:53]} Nxc4 {[%clk 00:10:54]} {[%emt 00:01:58]} 14. Nxc4
{[%clk 00:14:11]} {[%emt 00:00:25]} Bxc4 {[%clk 00:10:57]} {[%emt 00:00:02]} 15.
Qa4 {[%clk 00:12:58]} {[%emt 00:01:17]} d5 {[%clk 00:10:58]} {[%emt 00:00:05]}
16. e4 {[%clk 00:11:41]} {[%emt 00:01:22]} a5 {[%clk 00:10:17]} {[%emt
00:00:47]} 17. exd5 {[%clk 00:11:33]} {[%emt 00:00:13]} exd5 {[%clk 00:10:06]}
{[%emt 00:00:16]} 18. Re3 {[%clk 00:11:06]} {[%emt 00:00:32]} Qd6 {[%clk
00:06:12]} {[%emt 00:03:58]} 19. Rae1 {[%clk 00:10:19]} {[%emt 00:00:52]} Rbd8
{[%clk 00:06:07]} {[%emt 00:00:11]} 20. Re7 {[%clk 00:09:25]} {[%emt 00:00:58]}
Bd3 {[%clk 00:04:01]} {[%emt 00:02:04]} 21. Bh3 {[%clk 00:07:31]} {[%emt
00:02:05]} Be4 {[%clk 00:03:38]} {[%emt 00:00:29]} 22. Rd7 {[%clk 00:06:47]}
{[%emt 00:00:50]} Rxd7 {[%clk 00:03:36]} {[%emt 00:00:07]} 23. Bxd7 {[%clk
00:06:16]} {[%emt 00:00:36]} Rd8 {[%clk 00:03:33]} {[%emt 00:00:08]} 24. Bg4
{[%clk 00:06:00]} {[%emt 00:00:20]} f5 {[%clk 00:02:32]} {[%emt 00:01:07]} 25.
f3 {[%clk 00:05:18]} {[%emt 00:00:47]} Bd3 {[%clk 00:02:00]} {[%emt 00:00:35]}
26. Bh3 {[%clk 00:03:47]} {[%emt 00:01:38]} Qd7 {[%clk 00:01:47]} {[%emt
00:00:18]} 27. Qxd7 {[%clk 00:03:10]} {[%emt 00:00:41]} Rxd7 {[%clk 00:01:50]}
{[%emt 00:00:03]} 28. Re3 {[%clk 00:03:14]} Bb1 {[%clk 00:01:28]} {[%emt
00:00:26]} 29. a3 {[%clk 00:03:01]} {[%emt 00:00:19]} g6 {[%clk 00:01:15]}
{[%emt 00:00:19]} 30. g4 {[%clk 00:02:27]} {[%emt 00:00:38]} f4 {[%clk
00:01:14]} {[%emt 00:00:06]} 31. Re5 {[%clk 00:02:09]} {[%emt 00:00:23]} Kf7
{[%clk 00:01:09]} {[%emt 00:00:09]} 32. g5 {[%clk 00:01:48]} {[%emt 00:00:26]}
Rd6 {[%clk 00:01:10]} {[%emt 00:00:04]} 33. Kf2 {[%clk 00:01:33]} {[%emt
00:00:20]} Bd3 {[%clk 00:01:12]} {[%emt 00:00:04]} 34. Ke1 {[%clk 00:01:31]}
{[%emt 00:00:07]} Bb5 {[%clk 00:01:07]} {[%emt 00:00:09]} 35. Kd2 {[%clk
00:01:19]} {[%emt 00:00:18]} Bd7 {[%clk 00:01:06]} {[%emt 00:00:04]} 36. Bf1
{[%clk 00:01:13]} {[%emt 00:00:12]} c6 {[%clk 00:01:10]} {[%emt 00:00:02]} 37.
Be2 {[%clk 00:01:04]} {[%emt 00:00:14]} Re6 {[%clk 00:01:13]} {[%emt 00:00:02]}
38. Rxe6 {[%clk 00:01:03]} {[%emt 00:00:08]} Bxe6 {[%clk 00:01:07]} {[%emt
00:00:11]} 39. Ba6 {[%clk 00:01:04]} {[%emt 00:00:04]} Bd7 {[%clk 00:01:04]}
{[%emt 00:00:08]} 40. Kd3 {[%clk 00:00:51]} {[%emt 00:00:17]} Ke6 {[%clk
00:00:59]} {[%emt 00:00:10]} 41. c4 {[%clk 00:00:54]} {[%emt 00:00:02]} Kd6
{[%clk 00:00:59]} {[%emt 00:00:05]} 42. Kc3 {[%clk 00:00:40]} {[%emt 00:00:20]}
Be6 {[%clk 00:00:34]} {[%emt 00:00:30]} 43. cxd5 {[%clk 00:00:16]} {[%emt
00:00:29]} Bxd5 {[%clk 00:00:37]} {[%emt 00:00:02]} 44. Bc8 {[%clk 00:00:20]}
{[%emt 00:00:01]} Bxf3 {[%clk 00:00:36]} {[%emt 00:00:06]} 45. Ba6 {[%clk
00:00:18]} {[%emt 00:00:07]} b5 {[%clk 00:00:33]} {[%emt 00:00:07]} 46. Kd3
{[%clk 00:00:15]} {[%emt 00:00:08]} Bg4 {[%clk 00:00:32]} {[%emt 00:00:05]} 47.
Kd2 {[%clk 00:00:19]} {[%emt 00:00:02]} Kc7 {[%clk 00:00:30]} {[%emt 00:00:07]}
48. d5 {[%clk 00:00:10]} {[%emt 00:00:14]} Bd7 {[%clk 00:00:23]} {[%emt
00:00:12]} 49. dxc6 {[%clk 00:00:08]} {[%emt 00:00:07]} Kxc6 {[%clk 00:00:24]}
{[%emt 00:00:04]} 50. Ke2 {[%clk 00:00:10]} {[%emt 00:00:03]} Kb6 {[%clk
00:00:27]} {[%emt 00:00:02]} 51. Kf3 {[%clk 00:00:14]} Kxa6 {[%clk 00:00:29]}
{[%emt 00:00:04]} 52. Kxf4 {[%clk 00:00:17]} {[%emt 00:00:01]} Kb6 {[%clk
00:00:32]} {[%emt 00:00:03]} 53. Ke5 {[%clk 00:00:20]} {[%emt 00:00:01]} Kc5
{[%clk 00:00:32]} {[%emt 00:00:05]} 54. Kf6 {[%clk 00:00:24]} {[%emt 00:00:01]}
b4 {[%clk 00:00:35]} {[%emt 00:00:03]} 55. Kg7 {[%clk 00:00:25]} {[%emt
00:00:04]} bxa3 {[%clk 00:00:38]} {[%emt 00:00:01]} 56. Kxh7 {[%clk 00:00:28]}
{[%emt 00:00:01]} Bf5 {[%clk 00:00:42]} {[%emt 00:00:01]} 57. h4 {[%clk
00:00:31]} {[%emt 00:00:02]} a2 {[%clk 00:00:43]} {[%emt 00:00:04]} 58. h5
{[%clk 00:00:33]} {[%emt 00:00:03]} a1=Q {[%clk 00:00:43]} {[%emt 00:00:04]} 59.
hxg6 {[%clk 00:00:36]} {[%emt 00:00:03]} Bxg6+ {[%clk 00:00:40]} {[%emt
00:00:08]} 60. Kxg6 {[%clk 00:00:39]} {[%emt 00:00:02]} Qh8 {[%clk 00:00:43]}
{[%emt 00:00:01]} 61. Kf7 {[%clk 00:00:39]} {[%emt 00:00:05]} Qh7+ {[%clk
00:00:46]} {[%emt 00:00:02]} 62. Kf6 {[%clk 00:00:43]} {[%emt 00:00:02]} Qg8
{[%clk 00:00:50]} 63. g6 {[%clk 00:00:43]} {[%emt 00:00:05]} a4 {[%clk
00:00:50]} {[%emt 00:00:05]} 64. g7 {[%clk 00:00:46]} {[%emt 00:00:02]} a3
{[%clk 00:00:54]} {[%emt 00:00:01]} 65. Kg6 {[%clk 00:00:49]} {[%emt 00:00:02]}
a2 {[%clk 00:00:57]} {[%emt 00:00:01]} 66. Kh6 {[%clk 00:00:53]} {[%emt
00:00:01]} a1=Q {[%clk 00:00:58]} {[%emt 00:00:03]} 67. Kh5 {[%clk 00:00:51]}
{[%emt 00:00:03]} Qaxg7 {[%clk 00:01:01]} {[%emt 00:00:06]} 68. Kh4 {[%clk
00:00:53]} {[%emt 00:00:03]} Q8h8+ {[%clk 00:01:05]} {[%emt 00:00:01]} 0-1

[Event "MCR rapid mládeže 2023 U16"]
[Site "Harachov, Czech Republic"]
[Date "2023.09.09"]
[Round "4.13"]
[White "Kubatova, Beta"]
[Black "Policerova, Barbora"]
[Result "1-0"]
[TimeControl "20min+5s/move"]
[WhiteElo "1376"]
[BlackElo "1503"]

1. d4 {[%clk 00:20:06]} {[%emt 00:00:04]} d5 {[%clk 00:20:03]} {[%emt
00:00:07]} 2. c4 {[%clk 00:20:01]} {[%emt 00:00:10]} dxc4 {[%clk 00:19:58]}
{[%emt 00:00:10]} 3. e3 {[%clk 00:19:17]} {[%emt 00:00:49]} Nf6 {[%clk
00:19:38]} {[%emt 00:00:25]} 4. Bxc4 {[%clk 00:19:17]} {[%emt 00:00:05]} Bf5
{[%clk 00:19:10]} {[%emt 00:00:33]} 5. Nc3 {[%clk 00:19:04]} {[%emt 00:00:18]}
Nc6 {[%clk 00:18:54]} {[%emt 00:00:20]} 6. Nf3 {[%clk 00:18:57]} {[%emt
00:00:13]} e6 {[%clk 00:18:36]} {[%emt 00:00:23]} 7. Bd2 {[%clk 00:18:44]}
{[%emt 00:00:18]} Bd6 {[%clk 00:18:02]} {[%emt 00:00:39]} 8. O-O {[%clk
00:18:32]} {[%emt 00:00:17]} Ne4 {[%clk 00:17:18]} {[%emt 00:00:50]} 9. Nxe4
{[%clk 00:18:06]} {[%emt 00:00:31]} Bxe4 {[%clk 00:17:09]} {[%emt 00:00:13]} 10.
Bc3 {[%clk 00:17:53]} {[%emt 00:00:18]} O-O {[%clk 00:16:53]} {[%emt 00:00:20]}
11. Qe2 {[%clk 00:17:42]} {[%emt 00:00:17]} Re8 {[%clk 00:14:51]} {[%emt
00:02:07]} 12. Rfd1 {[%clk 00:17:24]} {[%emt 00:00:24]} Ne7 {[%clk 00:14:36]}
{[%emt 00:00:21]} 13. Rac1 {[%clk 00:17:01]} {[%emt 00:00:27]} c6 {[%clk
00:14:11]} {[%emt 00:00:30]} 14. Ng5 {[%clk 00:15:25]} {[%emt 00:01:41]} Bg6
{[%clk 00:13:03]} {[%emt 00:01:13]} 15. Bd3 {[%clk 00:13:29]} {[%emt 00:02:01]}
Nf5 {[%clk 00:12:47]} {[%emt 00:00:21]} 16. Nf3 {[%clk 00:12:56]} {[%emt
00:00:38]} Bh5 {[%clk 00:12:22]} {[%emt 00:00:29]} 17. h3 {[%clk 00:10:27]}
{[%emt 00:02:34]} Nh4 {[%clk 00:12:07]} {[%emt 00:00:20]} 18. g4 {[%clk
00:08:32]} {[%emt 00:02:00]} Nxf3+ {[%clk 00:12:00]} {[%emt 00:00:12]} 19. Qxf3
{[%clk 00:08:28]} {[%emt 00:00:10]} Qg5 {[%clk 00:11:51]} {[%emt 00:00:14]} 20.
Qg2 {[%clk 00:08:03]} {[%emt 00:00:31]} Bg6 {[%clk 00:11:42]} {[%emt 00:00:14]}
21. Bxg6 {[%clk 00:07:50]} {[%emt 00:00:18]} Qxg6 {[%clk 00:11:44]} {[%emt
00:00:03]} 22. Rf1 {[%clk 00:06:59]} {[%emt 00:00:56]} e5 {[%clk 00:11:17]}
{[%emt 00:00:32]} 23. dxe5 {[%clk 00:06:42]} {[%emt 00:00:22]} Bxe5 {[%clk
00:11:14]} {[%emt 00:00:08]} 24. Bxe5 {[%clk 00:06:14]} {[%emt 00:00:33]} Rxe5
{[%clk 00:11:10]} {[%emt 00:00:08]} 25. Rfd1 {[%clk 00:05:05]} {[%emt
00:01:14]} Rae8 {[%clk 00:10:57]} {[%emt 00:00:18]} 26. Rd4 {[%clk 00:04:39]}
{[%emt 00:00:32]} a5 {[%clk 00:10:06]} {[%emt 00:00:56]} 27. Rcd1 {[%clk
00:04:23]} {[%emt 00:00:20]} Qc2 {[%clk 00:09:35]} {[%emt 00:00:35]} 28. R4d2
{[%clk 00:03:30]} {[%emt 00:00:59]} Qc5 {[%clk 00:07:59]} {[%emt 00:01:40]} 29.
Qf3 {[%clk 00:02:32]} {[%emt 00:01:04]} b5 {[%clk 00:07:47]} {[%emt 00:00:17]}
30. Rd7 {[%clk 00:00:51]} {[%emt 00:01:47]} R5e7 {[%clk 00:07:39]} {[%emt
00:00:12]} 31. Rxe7 {[%clk 00:00:27]} {[%emt 00:00:28]} Qxe7 {[%clk 00:07:28]}
{[%emt 00:00:16]} 32. Qxc6 {[%clk 00:00:21]} {[%emt 00:00:12]} Qe5 {[%clk
00:06:51]} {[%emt 00:00:42]} 33. b3 {[%clk 00:00:09]} {[%emt 00:00:18]} b4
{[%clk 00:06:41]} {[%emt 00:00:14]} 34. Qd7 {[%clk 00:00:08]} {[%emt 00:00:06]}
h6 {[%clk 00:06:19]} {[%emt 00:00:27]} 35. Qd4 {[%clk 00:00:08]} {[%emt
00:00:04]} Qb5 {[%clk 00:06:00]} {[%emt 00:00:24]} 36. Rc1 {[%clk 00:00:09]}
{[%emt 00:00:04]} Qe2 {[%clk 00:05:42]} {[%emt 00:00:23]} 37. Qd7 {[%clk
00:00:11]} {[%emt 00:00:03]} Rf8 {[%clk 00:05:35]} {[%emt 00:00:12]} 38. Qa4
{[%clk 00:00:10]} {[%emt 00:00:06]} Qf3 {[%clk 00:04:38]} {[%emt 00:01:01]} 39.
Qxa5 {[%clk 00:00:10]} {[%emt 00:00:05]} Qxh3 {[%clk 00:04:40]} {[%emt
00:00:03]} 40. Qf5 {[%clk 00:00:12]} {[%emt 00:00:03]} Ra8 {[%clk 00:04:04]}
{[%emt 00:00:41]} 41. Qe4 {[%clk 00:00:14]} {[%emt 00:00:02]} Rd8 {[%clk
00:03:33]} {[%emt 00:00:36]} 42. Qxb4 {[%clk 00:00:12]} {[%emt 00:00:08]} Qf3
{[%clk 00:03:23]} {[%emt 00:00:15]} 43. Qf4 {[%clk 00:00:08]} {[%emt 00:00:09]}
Qe2 {[%clk 00:03:12]} {[%emt 00:00:16]} 44. a3 {[%clk 00:00:08]} {[%emt
00:00:06]} Qb2 {[%clk 00:03:10]} {[%emt 00:00:06]} 45. Qc4 {[%clk 00:00:08]}
{[%emt 00:00:06]} Qxa3 {[%clk 00:03:05]} {[%emt 00:00:10]} 46. b4 {[%clk
00:00:11]} {[%emt 00:00:02]} Qa4 {[%clk 00:02:21]} {[%emt 00:00:49]} 47. b5
{[%clk 00:00:09]} {[%emt 00:00:07]} Qxc4 {[%clk 00:02:19]} {[%emt 00:00:06]} 48.
Rxc4 {[%clk 00:00:12]} {[%emt 00:00:02]} Rb8 {[%clk 00:02:22]} {[%emt
00:00:02]} 49. Rb4 {[%clk 00:00:16]} {[%emt 00:00:01]} Kf8 {[%clk 00:02:26]}
{[%emt 00:00:01]} 50. b6 {[%clk 00:00:19]} {[%emt 00:00:02]} Ke7 {[%clk
00:02:29]} {[%emt 00:00:01]} 51. Kg2 {[%clk 00:00:23]} {[%emt 00:00:02]} Kd7
{[%clk 00:02:18]} {[%emt 00:00:16]} 52. Kf3 {[%clk 00:00:25]} {[%emt 00:00:03]}
Kc6 {[%clk 00:02:19]} {[%emt 00:00:04]} 53. Rf4 {[%clk 00:00:09]} {[%emt
00:00:21]} Rf8 {[%clk 00:02:12]} {[%emt 00:00:11]} 54. Rb4 {[%clk 00:00:12]}
{[%emt 00:00:02]} Kb7 {[%clk 00:02:15]} {[%emt 00:00:02]} 55. Kf4 {[%clk
00:00:15]} {[%emt 00:00:02]} Rd8 {[%clk 00:02:03]} {[%emt 00:00:17]} 56. Kg3
{[%clk 00:00:17]} {[%emt 00:00:03]} g5 {[%clk 00:02:05]} {[%emt 00:00:02]} 57.
Rb5 {[%clk 00:00:18]} {[%emt 00:00:04]} Rd2 {[%clk 00:01:52]} {[%emt 00:00:18]}
58. Rf5 {[%clk 00:00:17]} {[%emt 00:00:07]} Rd7 {[%clk 00:01:52]} {[%emt
00:00:04]} 59. Rf6 {[%clk 00:00:20]} {[%emt 00:00:02]} Re7 {[%clk 00:01:35]}
{[%emt 00:00:21]} 60. Rxh6 {[%clk 00:00:22]} {[%emt 00:00:04]} Re5 {[%clk
00:01:29]} {[%emt 00:00:11]} 61. Rf6 {[%clk 00:00:18]} {[%emt 00:00:08]} Ka6
{[%clk 00:01:17]} {[%emt 00:00:18]} 62. Rxf7 {[%clk 00:00:15]} {[%emt
00:00:08]} Kxb6 {[%clk 00:01:21]} {[%emt 00:00:02]} 63. Rf5 {[%clk 00:00:17]}
{[%emt 00:00:02]} Rxf5 {[%clk 00:00:57]} {[%emt 00:00:29]} 64. gxf5 {[%clk
00:00:21]} {[%emt 00:00:02]} Kc6 {[%clk 00:01:00]} {[%emt 00:00:01]} 65. Kg4
{[%clk 00:00:25]} Kd6 {[%clk 00:01:03]} {[%emt 00:00:02]} 66. Kxg5 {[%clk
00:00:28]} {[%emt 00:00:02]} Ke7 {[%clk 00:01:07]} 67. Kg6 {[%clk 00:00:31]}
{[%emt 00:00:03]} Kf8 {[%clk 00:01:11]} 68. Kf6 {[%clk 00:00:34]} {[%emt
00:00:02]} Kg8 {[%clk 00:01:12]} {[%emt 00:00:03]} 69. Ke7 {[%clk 00:00:38]}
{[%emt 00:00:01]} Kg7 {[%clk 00:01:15]} {[%emt 00:00:02]} 70. f6 {[%clk
00:00:42]} {[%emt 00:00:01]} Kg8 {[%clk 00:01:17]} {[%emt 00:00:02]} 71. f7+
{[%clk 00:00:45]} {[%emt 00:00:02]} 1-0

[Event "MCR rapid mládeže 2023 U16"]
[Site "Harachov, Czech Republic"]
[Date "2023.09.09"]
[Round "4.14"]
[White "Lackova, Ludmila"]
[Black "Bartova, Hana"]
[Result "1/2-1/2"]
[TimeControl "20min+5s/move"]
[WhiteElo "1479"]
[BlackElo "1389"]

1. d4 {[%clk 00:20:07]} {[%emt 00:00:02]} Nf6 {[%clk 00:20:09]} {[%emt
00:00:02]} 2. c4 {[%clk 00:20:11]} {[%emt 00:00:01]} e5 {[%clk 00:20:13]}
{[%emt 00:00:01]} 3. dxe5 {[%clk 00:20:14]} {[%emt 00:00:02]} Ng4 {[%clk
00:20:17]} 4. Nf3 {[%clk 00:20:18]} {[%emt 00:00:02]} Nc6 {[%clk 00:20:20]}
{[%emt 00:00:02]} 5. b3 {[%clk 00:20:11]} {[%emt 00:00:12]} Bb4+ {[%clk
00:19:57]} {[%emt 00:00:28]} 6. Bd2 {[%clk 00:20:10]} {[%emt 00:00:06]} Bxd2+
{[%clk 00:19:36]} {[%emt 00:00:26]} 7. Nbxd2 {[%clk 00:20:06]} {[%emt
00:00:08]} Ngxe5 {[%clk 00:19:37]} {[%emt 00:00:05]} 8. Nxe5 {[%clk 00:20:09]}
{[%emt 00:00:02]} Nxe5 {[%clk 00:19:40]} {[%emt 00:00:02]} 9. Nf3 {[%clk
00:20:12]} {[%emt 00:00:02]} Nxf3+ {[%clk 00:19:29]} {[%emt 00:00:16]} 10. exf3
{[%clk 00:20:15]} {[%emt 00:00:02]} d6 {[%clk 00:19:30]} {[%emt 00:00:05]} 11.
Bd3 {[%clk 00:20:15]} {[%emt 00:00:04]} Qe7+ {[%clk 00:19:11]} {[%emt
00:00:24]} 12. Qe2 {[%clk 00:20:03]} {[%emt 00:00:17]} Qxe2+ {[%clk 00:18:51]}
{[%emt 00:00:25]} 13. Kxe2 {[%clk 00:20:00]} {[%emt 00:00:07]} Be6 {[%clk
00:18:50]} {[%emt 00:00:06]} 14. Kd2 {[%clk 00:20:02]} {[%emt 00:00:03]} O-O-O
{[%clk 00:18:42]} {[%emt 00:00:13]} 15. Rhe1 {[%clk 00:20:02]} {[%emt
00:00:04]} d5 {[%clk 00:18:36]} {[%emt 00:00:13]} 16. cxd5 {[%clk 00:18:36]}
{[%emt 00:01:31]} Rxd5 {[%clk 00:18:33]} {[%emt 00:00:07]} 17. Kc3 {[%clk
00:18:24]} {[%emt 00:00:16]} Rhd8 {[%clk 00:18:10]} {[%emt 00:00:29]} 18. Rad1
{[%clk 00:17:37]} {[%emt 00:00:50]} Kb8 {[%clk 00:17:13]} {[%emt 00:01:04]} 19.
Bc2 {[%clk 00:17:22]} {[%emt 00:00:19]} Rxd1 {[%clk 00:15:50]} {[%emt
00:01:29]} 20. Rxd1 {[%clk 00:17:23]} {[%emt 00:00:05]} Rxd1 {[%clk 00:15:50]}
{[%emt 00:00:05]} 21. Bxd1 {[%clk 00:17:27]} Kc8 {[%clk 00:15:53]} {[%emt
00:00:01]} 22. Bc2 {[%clk 00:17:29]} {[%emt 00:00:03]} h6 {[%clk 00:15:10]}
{[%emt 00:00:48]} 23. a3 {[%clk 00:17:32]} {[%emt 00:00:03]} Kd7 {[%clk
00:15:09]} {[%emt 00:00:05]} 24. Kd4 {[%clk 00:17:29]} {[%emt 00:00:07]} Kd6
{[%clk 00:15:09]} {[%emt 00:00:07]} 25. b4 {[%clk 00:17:03]} {[%emt 00:00:31]}
Bd5 {[%clk 00:13:33]} {[%emt 00:01:39]} 26. Be4 {[%clk 00:09:01]} {[%emt
00:08:08]} c6 {[%clk 00:03:27]} {[%emt 00:10:12]} 27. Bd3 {[%clk 00:01:26]}
{[%emt 00:07:40]} Be6 {[%clk 00:01:36]} {[%emt 00:01:55]} 28. Be4 {[%clk
00:01:28]} {[%emt 00:00:02]} Bb3 {[%clk 00:01:36]} {[%emt 00:00:04]} 29. Bd3
{[%clk 00:00:44]} {[%emt 00:00:50]} f6 {[%clk 00:01:15]} {[%emt 00:00:26]} 30.
Be4 {[%clk 00:00:47]} {[%emt 00:00:01]} Ke5+ {[%clk 00:20:05]} {[%emt
00:00:56]} 1/2-1/2

[Event "MCR rapid mládeže 2023 U16"]
[Site "Harachov, Czech Republic"]
[Date "2023.09.09"]
[Round "4.15"]
[White "Mydlar, Matej"]
[Black "Mik, Tomas"]
[Result "0-1"]
[TimeControl "20min+5s/move"]
[WhiteElo "1711"]
[BlackElo "1802"]

1. e4 {[%clk 00:20:07]} {[%emt 00:00:02]} c5 {[%clk 00:20:08]} {[%emt
00:00:03]} 2. Nf3 {[%clk 00:20:11]} {[%emt 00:00:01]} e6 {[%clk 00:20:11]}
{[%emt 00:00:02]} 3. d4 {[%clk 00:20:14]} {[%emt 00:00:02]} cxd4 {[%clk
00:20:15]} {[%emt 00:00:01]} 4. Nxd4 {[%clk 00:20:18]} {[%emt 00:00:02]} a6
{[%clk 00:20:13]} {[%emt 00:00:06]} 5. Nc3 {[%clk 00:18:21]} {[%emt 00:02:02]}
Qc7 {[%clk 00:20:15]} {[%emt 00:00:04]} 6. a3 {[%clk 00:17:50]} {[%emt
00:00:35]} Nf6 {[%clk 00:20:07]} {[%emt 00:00:12]} 7. Be2 {[%clk 00:17:39]}
{[%emt 00:00:14]} Be7 {[%clk 00:20:01]} {[%emt 00:00:13]} 8. Be3 {[%clk
00:17:41]} {[%emt 00:00:04]} b5 {[%clk 00:20:00]} {[%emt 00:00:06]} 9. f3
{[%clk 00:15:35]} {[%emt 00:02:11]} Bb7 {[%clk 00:19:35]} {[%emt 00:00:30]} 10.
Qd2 {[%clk 00:15:17]} {[%emt 00:00:23]} d5 {[%clk 00:19:14]} {[%emt 00:00:26]}
11. exd5 {[%clk 00:15:20]} {[%emt 00:00:02]} Nxd5 {[%clk 00:19:16]} {[%emt
00:00:03]} 12. Nxd5 {[%clk 00:15:23]} {[%emt 00:00:02]} Bxd5 {[%clk 00:19:18]}
{[%emt 00:00:03]} 13. O-O-O {[%clk 00:14:56]} {[%emt 00:00:32]} Nd7 {[%clk
00:18:40]} {[%emt 00:00:43]} 14. Bf4 {[%clk 00:12:50]} {[%emt 00:02:10]} Qb7
{[%clk 00:16:46]} {[%emt 00:02:00]} 15. Nf5 {[%clk 00:12:28]} {[%emt 00:00:21]}
Bf8 {[%clk 00:15:06]} {[%emt 00:01:51]} 16. Nd6+ {[%clk 00:12:20]} {[%emt
00:00:12]} Bxd6 {[%clk 00:15:07]} {[%emt 00:00:05]} 17. Bxd6 {[%clk 00:12:24]}
{[%emt 00:00:01]} Rc8 {[%clk 00:15:08]} {[%emt 00:00:04]} 18. Qg5 {[%clk
00:11:53]} {[%emt 00:00:35]} Nf6 {[%clk 00:13:06]} {[%emt 00:02:07]} 19. Qxg7
{[%clk 00:11:43]} {[%emt 00:00:15]} Qc6 {[%clk 00:12:45]} {[%emt 00:00:27]} 20.
Rd2 {[%clk 00:09:33]} {[%emt 00:02:15]} Rg8 {[%clk 00:12:27]} {[%emt 00:00:23]}
21. Qxf6 {[%clk 00:09:35]} {[%emt 00:00:03]} Qxd6 {[%clk 00:12:30]} {[%emt
00:00:02]} 22. Rhd1 {[%clk 00:09:31]} {[%emt 00:00:09]} Qc7 {[%clk 00:11:04]}
{[%emt 00:01:31]} 23. c3 {[%clk 00:09:13]} {[%emt 00:00:23]} Rb8 {[%clk
00:08:14]} {[%emt 00:02:55]} 24. Kb1 {[%clk 00:07:45]} {[%emt 00:01:33]} a5
{[%clk 00:07:55]} {[%emt 00:00:25]} 25. Re1 {[%clk 00:06:06]} {[%emt 00:01:43]}
b4 {[%clk 00:06:26]} {[%emt 00:01:34]} 26. axb4 {[%clk 00:06:00]} {[%emt
00:00:10]} axb4 {[%clk 00:06:16]} {[%emt 00:00:15]} 27. cxb4 {[%clk 00:05:30]}
{[%emt 00:00:36]} Qa7 {[%clk 00:03:33]} {[%emt 00:02:48]} 28. Rc2 {[%clk
00:01:16]} {[%emt 00:04:18]} Ba2+ {[%clk 00:02:13]} {[%emt 00:01:26]} 29. Kc1
{[%clk 00:01:03]} {[%emt 00:00:17]} Qe3+ {[%clk 00:02:14]} {[%emt 00:00:05]} 30.
Rd2 {[%clk 00:01:00]} {[%emt 00:00:07]} Rc8+ {[%clk 00:02:16]} {[%emt
00:00:04]} 0-1

[Event "MCR rapid mládeže 2023 U16"]
[Site "Harachov, Czech Republic"]
[Date "2023.09.09"]
[Round "4.16"]
[White "Kozdon, Marek"]
[Black "Bara, Jan"]
[Result "0-1"]
[TimeControl "20min+5s/move"]
[WhiteElo "1548"]
[BlackElo "1823"]

1. d4 {[%emt 00:01:23]} Nf6 {[%emt 00:00:04]} 2. c4 {[%emt 00:00:12]} g6 {[%emt
00:00:02]} 3. Nc3 {[%emt 00:00:05]} d5 {[%emt 00:00:03]} 4. cxd5 {[%emt
00:00:20]} Nxd5 {[%emt 00:00:01]} 5. Nxd5 {[%emt 00:00:11]} Qxd5 {[%emt
00:00:09]} 6. Nf3 {[%emt 00:00:03]} Bg7 {[%emt 00:00:36]} 7. e3 {[%emt
00:00:05]} O-O {[%emt 00:00:53]} 8. Be2 {[%emt 00:00:20]} c5 {[%emt 00:01:04]}
9. dxc5 {[%emt 00:00:53]} Qxc5 {[%emt 00:01:06]} 10. O-O {[%emt 00:00:45]} Nc6
{[%emt 00:00:08]} 11. Qb3 {[%emt 00:01:27]} Rb8 {[%emt 00:03:07]} 12. Bd2
{[%emt 00:00:32]} Be6 {[%emt 00:00:08]} 13. Rfc1 {[%emt 00:03:06]} Qxc1+ {[%emt
00:00:50]} 14. Bxc1 {[%emt 00:01:18]} Bxb3 {[%emt 00:00:02]} 15. axb3 {[%emt
00:00:01]} Rfd8 {[%emt 00:00:40]} 16. h3 {[%emt 00:00:25]} a6 {[%emt 00:00:19]}
17. Rb1 {[%emt 00:00:58]} e5 {[%emt 00:00:11]} 18. e4 {[%emt 00:00:10]} Nd4
{[%emt 00:00:27]} 19. Bf1 {[%emt 00:00:26]} Nxf3+ {[%emt 00:00:26]} 20. gxf3
{[%emt 00:00:02]} Rd1 {[%emt 00:00:01]} 21. Kg2 {[%emt 00:00:25]} Rc8 {[%emt
00:00:05]} 22. Bc4 {[%emt 00:00:12]} b5 {[%clk 00:11:27]} {[%emt 00:00:08]} 0-1